bitfinex/quotes_BTCUSD_20250813
["timestamp","ask_amount","ask_price","bid_price","bid_amount"]
[1755107887852,0.00676957,121670.0,121660.0,1.14628935]
[1755107887995,0.00676957,121670.0,121660.0,1.48616969]
[1755107888578,0.00676957,121670.0,121660.0,0.80640901]
[1755107888783,0.00676957,121670.0,121660.0,1.48616969]
[1755107889325,0.00676957,121670.0,121660.0,0.80640901]
[1755107889477,0.00676957,121670.0,121660.0,1.48616969]
[1755107889857,0.00676957,121670.0,121660.0,0.80640901]
[1755107890063,0.00874957,121670.0,121660.0,1.36000969]
[1755107890271,0.00874957,121670.0,121660.0,1.48612969]
[1755107891390,0.00676957,121670.0,121660.0,1.48612969]
[1755107891591,0.00676957,121670.0,121660.0,1.78536969]
[1755107892151,0.00676957,121670.0,121660.0,1.10560901]
[1755107892353,0.00676957,121670.0,121660.0,1.78536969]
[1755107894217,0.00676957,121670.0,121660.0,1.68300969]
[1755107895117,0.00874957,121670.0,121660.0,0.68024901]
[1755107895320,0.01029311,121670.0,121660.0,1.14105935]
[1755107895549,0.01029311,121670.0,121660.0,1.48105969]
[1755107895746,0.00874957,121670.0,121660.0,1.48105969]
[1755107895880,0.01029311,121670.0,121660.0,1.48105969]
[1755107896076,0.01029311,121670.0,121660.0,1.14117935]
[1755107896318,0.00874957,121670.0,121660.0,1.14117935]
[1755107896524,0.00874957,121670.0,121660.0,1.01489935]
[1755107896846,0.00874957,121670.0,121660.0,1.08982634]
[1755107897052,0.00874957,121670.0,121660.0,0.41006566]
[1755107897195,0.00874957,121670.0,121660.0,1.21610634]
[1755107897644,0.01044957,121670.0,121660.0,0.53634566]
[1755107898230,0.01029311,121670.0,121660.0,0.876346]
[1755107898446,0.00874957,121670.0,121660.0,0.876346]
[1755107899024,0.00874957,121670.0,121660.0,0.876386]
[1755107899729,0.00874957,121670.0,121660.0,0.53650566]
[1755107899963,0.00874957,121670.0,121660.0,0.876386]
[1755107901533,0.00874957,121670.0,121660.0,0.70934566]
[1755107901534,0.09147282,121670.0,121660.0,0.70934566]
[1755107901790,0.09317282,121670.0,121660.0,0.80284129]
[1755107902010,0.4345967,121670.0,121660.0,0.80284129]
[1755107902237,0.09317282,121670.0,121660.0,0.80284129]
[1755107902459,0.09471636,121670.0,121660.0,1.04036163]
[1755107902722,0.09301636,121670.0,121660.0,1.04036163]
[1755107904071,0.09301636,121670.0,121660.0,0.70048129]
[1755107904313,0.09471636,121670.0,121660.0,0.50352129]
[1755107905000,0.45809518,121670.0,121660.0,0.03716129]
[1755107905250,0.45655164,121670.0,121660.0,0.12632]
[1755107905482,0.02349848,121660.0,121650.0,0.35118821]
[1755107905690,0.08949282,121670.0,121660.0,0.00324]
[1755107905913,0.09147282,121670.0,121660.0,0.46944034]
[1755107906110,0.09147282,121670.0,121660.0,0.34312034]
[1755107906342,0.09147282,121670.0,121660.0,0.50704316]
[1755107906643,0.08670325,121670.0,121660.0,0.50704316]
[1755107906851,0.08470325,121670.0,121660.0,0.50704316]
[1755107907639,0.08824679,121670.0,121660.0,0.50704316]
[1755107908174,0.08824679,121670.0,121660.0,0.38072316]
[1755107908400,0.08824679,121670.0,121660.0,0.50700316]
[1755107909045,0.09324679,121670.0,121660.0,0.50700316]
[1755107909781,0.09324679,121670.0,121660.0,0.38072316]
[1755107909993,0.09126679,121670.0,121660.0,0.50700316]
[1755107910625,0.09323679,121670.0,121660.0,0.50700316]
[1755107910838,0.09323679,121670.0,121660.0,0.03868282]
[1755107911047,0.09323679,121670.0,121660.0,0.16492282]
[1755107911255,0.09323679,121670.0,121660.0,0.16689282]
[1755107911469,0.09126679,121670.0,121660.0,0.16689282]
[1755107911676,0.09126679,121670.0,121660.0,0.77061034]
[1755107911677,0.08972325,121670.0,121660.0,0.77061034]
[1755107911881,0.09126679,121670.0,121660.0,0.77061034]
[1755107912932,0.08972325,121670.0,121660.0,0.77061034]
[1755107913587,0.08972325,121670.0,121660.0,0.66821034]
[1755107913935,0.007,121670.0,121660.0,0.81109068]
[1755107914154,0.007,121670.0,121660.0,0.89357511]
[1755107914514,0.007,121670.0,121660.0,1.13095311]
[1755107914716,0.007,121670.0,121660.0,0.91719277]
[1755107914937,0.007,121670.0,121660.0,0.57731243]
[1755107915088,0.007,121670.0,121660.0,1.25707311]
[1755107915701,0.007,121670.0,121660.0,1.13095311]
[1755107915908,0.007,121670.0,121660.0,1.25707311]
[1755107916107,0.007,121670.0,121660.0,1.13095311]
[1755107916542,0.007,121670.0,121660.0,1.25703311]
[1755107917232,0.007,121670.0,121660.0,0.57727243]
[1755107917435,0.007,121670.0,121660.0,0.45119243]
[1755107917635,0.00854354,121670.0,121660.0,0.83482834]
[1755107917799,0.007,121670.0,121660.0,0.83482834]
[1755107918810,0.007,121670.0,121660.0,0.494948]
[1755107918982,0.007,121670.0,121660.0,0.70858834]
[1755107919218,0.007,121670.0,121660.0,0.83494834]
[1755107919417,0.007,121670.0,121660.0,0.91743277]
[1755107921474,0.007,121670.0,121660.0,1.21675277]
[1755107922839,0.007,121670.0,121660.0,1.55663311]
[1755107924907,0.007,121670.0,121660.0,1.13095311]
[1755107925310,0.007,121670.0,121660.0,0.45119243]
[1755107925542,0.007,121670.0,121660.0,0.70858834]
[1755107925754,0.007,121670.0,121660.0,0.83478834]
[1755107925755,0.00854354,121670.0,121660.0,0.83478834]
[1755107926331,0.00854354,121670.0,121660.0,0.494908]
[1755107926535,0.00854354,121670.0,121660.0,0.70858834]
[1755107926981,0.00854354,121670.0,121660.0,0.83478834]
[1755107927183,0.00854354,121670.0,121660.0,0.91723277]
[1755107927589,0.00854354,121670.0,121660.0,0.79107277]
[1755107927831,0.00854354,121670.0,121660.0,0.91723277]
[1755107928271,0.00854354,121670.0,121660.0,0.45119243]
[1755107928409,0.00854354,121670.0,121660.0,0.91723277]
[1755107928966,0.00854354,121670.0,121660.0,0.57735243]
[1755107929145,0.00854354,121670.0,121660.0,0.91723277]
[1755107929371,0.00854354,121670.0,121660.0,0.79107277]
[1755107929576,0.00854354,121670.0,121660.0,0.91719277]
[1755107930750,0.00854354,121670.0,121660.0,0.45119243]
[1755107930963,0.00854354,121670.0,121660.0,0.91715277]
[1755107931594,0.00854354,121670.0,121660.0,1.21647277]
[1755107934587,0.00854354,121670.0,121660.0,1.21643277]
[1755107934824,0.00854354,121670.0,121660.0,0.91711277]
[1755107935197,0.00854354,121670.0,121660.0,0.79107277]
[1755107935411,0.00854354,121670.0,121660.0,0.91711277]
[1755107935610,0.00854354,121670.0,121660.0,0.79107277]
[1755107935845,0.00854354,121670.0,121660.0,0.91711277]
[1755107936764,0.09126679,121670.0,121660.0,0.91711277]
[1755107937757,0.09126679,121670.0,121660.0,0.89361477]
[1755107938015,0.09126679,121670.0,121660.0,0.55373443]
[1755107938210,0.09126679,121670.0,121660.0,0.89361477]
[1755107938414,0.09126679,121670.0,121660.0,0.76757477]
[1755107938627,0.09126679,121670.0,121660.0,0.89353477]
[1755107939884,0.09126679,121670.0,121660.0,0.76757477]
[1755107940095,0.09126679,121670.0,121660.0,0.89353477]
[1755107940532,0.09126679,121670.0,121660.0,0.55365443]
[1755107940741,0.09126679,121670.0,121660.0,0.76757477]
[1755107941158,0.09126679,121670.0,121660.0,0.89357477]
[1755107941577,0.09126679,121670.0,121660.0,1.19289477]
[1755107941788,0.09126679,121670.0,121660.0,0.85301443]
[1755107941997,0.09126679,121670.0,121660.0,1.19289477]
[1755107942614,0.09126679,121670.0,121660.0,0.96449477]
[1755107942792,0.09126679,121670.0,121660.0,1.09045477]
[1755107945746,0.09126679,121670.0,121660.0,0.75045477]
[1755107946650,0.09126679,121670.0,121660.0,0.55353477]
[1755107948000,0.09126679,121670.0,121660.0,0.89345477]
[1755107949166,0.09126679,121670.0,121660.0,0.89341477]
[1755107950710,0.09126679,121670.0,121660.0,0.89337477]
[1755107951089,0.09126679,121670.0,121660.0,0.76757477]
[1755107951270,0.09126679,121670.0,121660.0,0.89337477]
[1755107951432,0.09126679,121670.0,121660.0,1.19269477]
[1755107952596,0.09126679,121670.0,121660.0,1.19265477]
[1755107952797,0.09126679,121670.0,121660.0,1.09025477]
[1755107953480,0.09324679,121670.0,121660.0,0.27940443]
[1755107953685,0.45662561,121670.0,121660.0,0.12576]
[1755107953867,0.11520173,121670.0,121660.0,0.12576]
[1755107954026,0.11674527,121670.0,121660.0,0.47074034]
[1755107954232,0.11520173,121670.0,121660.0,0.47074034]
[1755107954474,0.11674527,121670.0,121660.0,0.47074034]
[1755107954670,0.11674527,121670.0,121660.0,0.51894516]
[1755107955268,0.11674527,121670.0,121660.0,0.17906482]
[1755107956229,0.45662561,121670.0,121660.0,0.04820482]
[1755107956431,0.45678207,121670.0,121660.0,0.04820482]
[1755107956637,0.45508207,121670.0,121660.0,0.12576]
[1755107957241,0.44808207,121670.0,121660.0,0.12576]
[1755107957469,0.45008207,121670.0,121660.0,0.12576]
[1755107957684,0.45508207,121670.0,121660.0,0.12576]
[1755107957885,0.11520173,121670.0,121660.0,0.12576]
[1755107958012,0.11674527,121670.0,121660.0,0.17376182]
[1755107958617,0.11674527,121670.0,121660.0,0.17683182]
[1755107960536,0.11674527,121670.0,121660.0,0.17886182]
[1755107961509,0.11476527,121670.0,121660.0,0.47818182]
[1755107962696,0.11476527,121670.0,121660.0,0.81806216]
[1755107963404,0.45464561,121670.0,121660.0,0.47818182]
[1755107963605,0.45310207,121670.0,121660.0,0.47308182]
[1755107964224,0.45310207,121670.0,121660.0,0.37068182]
[1755107964983,0.45310207,121670.0,121660.0,0.17376182]
[1755107965430,0.11322173,121670.0,121660.0,0.17376182]
[1755107965626,0.45464561,121670.0,121660.0,0.17376182]
[1755107965839,0.45310207,121670.0,121660.0,0.17376182]
[1755107966578,0.45310207,121670.0,121660.0,0.12576]
[1755107966779,0.45508207,121670.0,121660.0,0.12576]
[1755107967700,0.11520173,121670.0,121660.0,0.12576]
[1755107967903,0.45662561,121670.0,121660.0,0.12576]
[1755107968032,0.45508207,121670.0,121660.0,0.12576]
[1755107968241,0.45508207,121670.0,121660.0,0.17376182]
[1755107969057,0.11520173,121670.0,121660.0,0.17376182]
[1755107969300,0.45662561,121670.0,121660.0,0.17376182]
[1755107969589,0.45508207,121670.0,121660.0,0.17376182]
[1755107970035,0.45508207,121670.0,121660.0,0.17691182]
[1755107970922,0.45508207,121670.0,121660.0,0.05115182]
[1755107971326,0.45508207,121670.0,121660.0,0.17691182]
[1755107971531,0.45508207,121670.0,121660.0,0.47623182]
[1755107972371,0.45508207,121670.0,121660.0,0.35047182]
[1755107972527,0.45508207,121670.0,121660.0,0.47623182]
[1755107974077,0.11520173,121670.0,121660.0,0.47623182]
[1755107974361,0.45662561,121670.0,121660.0,0.47623182]
[1755107974580,0.45508207,121670.0,121660.0,0.47623182]
[1755107975562,0.11520173,121670.0,121660.0,0.47623182]
[1755107975769,0.11674527,121670.0,121660.0,0.47623182]
[1755107976011,0.45662561,121670.0,121660.0,0.47623182]
[1755107976220,0.45508207,121670.0,121660.0,0.47623182]
[1755107976428,0.45508207,121670.0,121660.0,0.37383182]
[1755107977252,0.11520173,121670.0,121660.0,0.37383182]
[1755107977424,0.11674527,121670.0,121660.0,0.37383182]
[1755107978805,0.11674527,121670.0,121660.0,0.37582182]
[1755107980420,0.11674527,121670.0,121660.0,0.17890182]
[1755107981444,0.11674527,121670.0,121660.0,0.47822182]
[1755107983767,0.02349848,121660.0,121650.0,0.003]
[1755107983979,0.78949595,121660.0,121650.0,0.19992]
[1755107984192,0.44807207,121660.0,121650.0,0.32883]
[1755107984831,0.44807207,121660.0,121650.0,0.00615]
[1755107985042,0.44807207,121660.0,121650.0,0.13191]
[1755107985233,0.44807207,121660.0,121650.0,0.145401]
[1755107985641,0.47670607,121660.0,121650.0,0.145401]
[1755107985939,0.47870607,121660.0,121650.0,0.145401]
[1755107986358,0.83603543,121660.0,121650.0,0.003]
[1755107986561,0.83773543,121660.0,121650.0,0.12876]
[1755107987338,0.83573543,121660.0,121650.0,0.12876]
[1755107987548,0.83673543,121660.0,121650.0,0.12876]
[1755107987754,0.83503543,121660.0,121650.0,0.12876]
[1755107987955,0.83103543,121660.0,121650.0,0.12876]
[1755107988263,0.83003543,121660.0,121650.0,0.13076]
[1755107988478,0.83203543,121660.0,121650.0,0.12876]
[1755107988639,0.83203543,121660.0,121650.0,0.12976]
[1755107988844,0.83003543,121660.0,121650.0,0.12976]
[1755107989086,0.83303543,121660.0,121650.0,0.12976]
[1755107989329,0.49315509,121660.0,121650.0,0.143351]
[1755107989457,0.49118509,121660.0,121650.0,0.148491]
[1755107989675,0.13385573,121660.0,121650.0,0.022731]
[1755107989869,0.13385573,121660.0,121650.0,0.148491]
[1755107990078,0.47527961,121660.0,121650.0,0.148491]
[1755107990287,0.47373607,121660.0,121650.0,0.148491]
[1755107990487,0.47373607,121660.0,121650.0,0.022731]
[1755107990680,0.13385573,121660.0,121650.0,0.148491]
[1755107990881,0.13539927,121660.0,121650.0,0.148491]
[1755107991594,0.13539927,121660.0,121650.0,0.447851]
[1755107991793,0.13385573,121660.0,121650.0,0.447851]
[1755107991983,0.13539927,121660.0,121650.0,0.447851]
[1755107992184,0.47527961,121660.0,121650.0,0.447851]
[1755107992383,0.47373607,121660.0,121650.0,0.447851]
[1755107992902,0.13385573,121660.0,121650.0,0.447851]
[1755107993119,0.13539927,121660.0,121650.0,0.447851]
[1755107993729,0.13539927,121660.0,121650.0,0.322091]
[1755107993939,0.13539927,121660.0,121650.0,0.447851]
[1755107995918,0.13539927,121660.0,121650.0,0.345451]
[1755107996143,0.47527961,121660.0,121650.0,0.148491]
[1755107996364,0.13385573,121660.0,121650.0,0.1349]
[1755107996547,0.47373607,121660.0,121650.0,0.1349]
[1755107997959,0.47570607,121660.0,121650.0,0.1349]
[1755107998357,0.13582573,121660.0,121650.0,0.1349]
[1755107998542,0.47570607,121660.0,121650.0,0.00914]
[1755107998768,0.47570607,121660.0,121650.0,0.12976]
[1755107998955,0.83473543,121660.0,121650.0,0.12976]
[1755107999560,0.83303543,121660.0,121650.0,0.12976]
[1755108000336,0.83473543,121660.0,121650.0,0.12976]
[1755108000740,0.83473543,121660.0,121650.0,0.004]
[1755108001154,1.17461577,121660.0,121650.0,0.004]
[1755108001378,1.51461577,121660.0,121650.0,0.004]
[1755108001603,1.51461577,121660.0,121650.0,0.42908]
[1755108001815,0.49497475,121660.0,121650.0,0.30336]
[1755108002179,0.15327475,121660.0,121650.0,0.30336]
[1755108002310,0.81108049,121660.0,121650.0,0.333996]
[1755108002525,0.15327475,121660.0,121650.0,0.463076]
[1755108002730,0.15327475,121660.0,121650.0,0.360676]
[1755108002731,0.49469863,121660.0,121650.0,0.360676]
[1755108002946,0.81053695,121660.0,121650.0,0.163716]
[1755108003161,0.83503543,121660.0,121650.0,0.13308]
[1755108003374,0.81153695,121660.0,121650.0,0.13308]
[1755108003589,0.13285573,121660.0,121650.0,0.00803]
[1755108003802,0.47273607,121660.0,121650.0,0.13807]
[1755108004019,0.47273607,121660.0,121650.0,0.00803]
[1755108004020,0.12980627,121660.0,121650.0,0.00803]
[1755108004239,0.13585573,121660.0,121650.0,0.13803]
[1755108004450,0.13739927,121660.0,121650.0,0.13803]
[1755108004683,0.13739927,121660.0,121650.0,0.18612103]
[1755108004898,0.13739927,121660.0,121650.0,0.34791034]
[1755108005215,0.11276527,121660.0,121650.0,0.34791034]
[1755108005454,0.11122173,121660.0,121650.0,0.47791034]
[1755108005883,0.11122173,121660.0,121650.0,0.52281034]
[1755108005884,0.10622173,121660.0,121650.0,0.52281034]
[1755108006119,0.10822173,121660.0,121650.0,0.39281034]
[1755108006321,0.10822173,121660.0,121650.0,0.18293]
[1755108006531,0.10822173,121660.0,121650.0,0.2039863]
[1755108006765,0.11076527,121660.0,121650.0,0.2039863]
[1755108006983,0.10922173,121660.0,121650.0,0.2039863]
[1755108007405,0.10922173,121660.0,121650.0,0.18293]
[1755108007839,0.08572325,121660.0,121650.0,0.05293]
[1755108008049,0.08572325,121660.0,121650.0,0.50624215]
[1755108008263,0.08572325,121660.0,121650.0,0.63844215]
[1755108008474,0.08472325,121660.0,121650.0,0.18513]
[1755108008690,0.08472325,121660.0,121650.0,0.52751845]
[1755108008933,0.08272325,121660.0,121650.0,0.0762063]
[1755108009146,0.08272325,121660.0,121650.0,0.64048215]
[1755108010016,0.08272325,121660.0,121650.0,0.50824215]
[1755108010225,0.08272325,121660.0,121650.0,0.64048215]
[1755108010654,0.08272325,121660.0,121650.0,0.18717]
[1755108010873,0.08272325,121660.0,121650.0,0.64048215]
[1755108011103,0.08272325,121660.0,121650.0,0.25398152]
[1755108011306,0.08272325,121660.0,121650.0,0.64048215]
[1755108011511,0.08272325,121660.0,121650.0,0.93984215]
[1755108012233,0.08272325,121660.0,121650.0,0.93976215]
[1755108012435,0.08272325,121660.0,121650.0,0.80760215]
[1755108012637,0.08272325,121660.0,121650.0,0.93976215]
[1755108012803,0.08272325,121660.0,121650.0,1.02224658]
[1755108012965,0.08272325,121660.0,121650.0,0.78768658]
[1755108013183,0.10622173,121660.0,121650.0,0.28947443]
[1755108013381,0.10622173,121660.0,121650.0,0.22459443]
[1755108013584,0.10622173,121660.0,121650.0,0.14211]
[1755108014020,0.10622173,121660.0,121650.0,0.59542215]
[1755108014224,0.10622173,121660.0,121650.0,0.59342215]
[1755108014665,0.10622173,121660.0,121650.0,0.46234215]
[1755108014896,0.10622173,121660.0,121650.0,0.19010752]
[1755108015104,0.10622173,121660.0,121650.0,0.59442215]
[1755108015436,0.08272325,121660.0,121650.0,0.59442215]
[1755108015636,0.08272325,121660.0,121650.0,0.61905515]
[1755108015950,0.58150644,121660.0,121650.0,0.028633]
[1755108016153,0.12665075,121660.0,121650.0,0.13902]
[1755108016411,0.12819429,121660.0,121650.0,0.13898]
[1755108017025,0.12719429,121660.0,121650.0,0.13898]
[1755108017237,0.12719429,121660.0,121650.0,0.150198]
[1755108017444,0.13019429,121660.0,121650.0,0.150198]
[1755108018165,0.13019429,121660.0,121650.0,0.018198]
[1755108018370,0.11076527,121660.0,121650.0,0.60854015]
[1755108018568,0.08726679,121660.0,121650.0,0.60754015]
[1755108018781,0.11276527,121660.0,121650.0,0.60754015]
[1755108019053,0.11276527,121660.0,121650.0,0.47554015]
[1755108019235,0.10976527,121660.0,121650.0,0.154108]
[1755108019502,0.10776527,121660.0,121650.0,0.60742015]
[1755108019726,0.10976527,121660.0,121650.0,0.60742015]
[1755108019924,0.10922173,121660.0,121650.0,0.154108]
[1755108020101,0.11076527,121660.0,121650.0,0.154108]
[1755108020367,0.10876527,121660.0,121650.0,0.13991]
[1755108020566,0.11076527,121660.0,121650.0,0.59322215]
[1755108020825,0.11076527,121660.0,121650.0,0.59314215]
[1755108021005,0.11076527,121660.0,121650.0,0.46134215]
[1755108021217,0.08572325,121660.0,121650.0,0.46134215]
[1755108021432,0.08572325,121660.0,121650.0,0.13983]
[1755108021639,0.08572325,121660.0,121650.0,0.89250215]
[1755108022293,0.08472325,121660.0,121650.0,0.89250215]
[1755108022430,0.08472325,121660.0,121650.0,0.89350215]
[1755108022665,0.08472325,121660.0,121650.0,0.44019]
[1755108022868,0.08272325,121660.0,121650.0,0.89350215]
[1755108023065,0.08272325,121660.0,121650.0,0.97598658]
[1755108023270,0.08372325,121660.0,121650.0,0.97598658]
[1755108026135,0.08372325,121660.0,121650.0,0.52267443]
[1755108026349,0.08372325,121660.0,121650.0,0.97598658]
[1755108026784,0.08372325,121660.0,121650.0,0.84418658]
[1755108026988,0.08372325,121660.0,121650.0,0.87358658]
[1755108027970,0.08372325,121660.0,121650.0,0.74178658]
[1755108028171,0.08372325,121660.0,121650.0,0.87350658]
[1755108028609,0.08372325,121660.0,121650.0,0.09151443]
[1755108028810,0.08372325,121660.0,121650.0,0.59394215]
[1755108029014,0.08372325,121660.0,121650.0,0.14063]
[1755108029213,0.08372325,121660.0,121650.0,0.59394215]
[1755108029853,0.08372325,121660.0,121650.0,0.46234215]
[1755108030674,0.08372325,121660.0,121650.0,0.59386215]
[1755108030866,0.08372325,121660.0,121650.0,0.54258543]
[1755108031068,0.08372325,121660.0,121650.0,0.41110543]
[1755108031366,0.08372325,121660.0,121650.0,0.54258543]
[1755108031731,0.08372325,121660.0,121650.0,0.84194543]
[1755108032738,0.08372325,121660.0,121650.0,0.84182543]
[1755108032971,0.08372325,121660.0,121650.0,0.84178543]
[1755108033387,0.08372325,121660.0,121650.0,1.07931124]
[1755108033589,0.08372325,121660.0,121650.0,0.73938543]
[1755108033803,0.08372325,121660.0,121650.0,0.76401743]
[1755108034904,0.08372325,121660.0,121650.0,0.42409162]
[1755108035114,0.08372325,121660.0,121650.0,1.10394324]
[1755108035549,0.08372325,121660.0,121650.0,0.42409162]
[1755108035757,0.08372325,121660.0,121650.0,0.76401743]
[1755108036202,0.08372325,121660.0,121650.0,1.10394324]
[1755108037184,0.08372325,121660.0,121650.0,0.42409162]
[1755108037393,0.08372325,121660.0,121650.0,1.10394324]
[1755108038231,0.08372325,121660.0,121650.0,0.42409162]
[1755108038465,0.08372325,121660.0,121650.0,0.56713743]
[1755108038677,0.08372325,121660.0,121650.0,0.43573743]
[1755108038889,0.08372325,121660.0,121650.0,0.90706324]
[1755108039104,0.08372325,121660.0,121650.0,0.22721162]
[1755108039373,0.08372325,121660.0,121650.0,0.50498781]
[1755108039587,0.08372325,121660.0,121650.0,0.165062]
[1755108039808,0.08372325,121660.0,121650.0,0.50498781]
[1755108040022,0.08372325,121660.0,121650.0,0.48035581]
[1755108040625,0.08372325,121660.0,121650.0,0.34895581]
[1755108040832,0.08570325,121660.0,121650.0,0.54443397]
[1755108040990,0.08570325,121660.0,121650.0,0.41311397]
[1755108041209,0.08570325,121660.0,121650.0,0.54443397]
[1755108041439,0.08570325,121660.0,121650.0,0.64683397]
[1755108041642,0.08570325,121660.0,121650.0,0.84379397]
[1755108042623,0.53898946,121660.0,121650.0,0.50386816]
[1755108043937,0.56248794,121660.0,121650.0,0.50386816]
[1755108044184,0.56248794,121660.0,121650.0,0.37254816]
[1755108044386,0.10920173,121660.0,121650.0,0.33212]
[1755108044601,0.56248794,121660.0,121650.0,0.33212]
[1755108044807,0.10920173,121660.0,121650.0,0.33212]
[1755108045051,0.56248794,121660.0,121650.0,0.33212]
[1755108046102,0.56418794,121660.0,121650.0,0.33212]
[1755108046305,0.56418794,121660.0,121650.0,0.004]
[1755108046512,0.56418794,121660.0,121650.0,0.13516]
[1755108047915,0.11090173,121660.0,121650.0,0.13516]
[1755108048123,0.56418794,121660.0,121650.0,0.13516]
[1755108048318,0.56418794,121660.0,121650.0,0.004]
[1755108048511,0.58163696,121660.0,121650.0,0.004]
[1755108048915,0.58767696,121660.0,121650.0,0.13492]
[1755108049111,0.58767696,121660.0,121650.0,0.004]
[1755108049513,0.58767696,121660.0,121650.0,0.13492]
[1755108050145,0.58559619,121660.0,121650.0,0.13492]
[1755108050461,0.58559619,121660.0,121650.0,0.13496]
[1755108050710,0.58559619,121660.0,121650.0,0.148752]
[1755108051130,0.58559619,121660.0,121650.0,0.13496]
[1755108051528,0.58859619,121660.0,121650.0,0.43332]
[1755108054001,0.58888318,121660.0,121650.0,0.43332]
[1755108056811,0.58888318,121660.0,121650.0,0.33092]
[1755108059001,0.58888318,121660.0,121650.0,0.13356]
[1755108060116,0.58888318,121660.0,121650.0,0.13348]
[1755108060326,0.13360998,121660.0,121650.0,0.016656]
[1755108060503,0.58872672,121660.0,121650.0,0.003]
[1755108060705,0.58888318,121660.0,121650.0,0.003]
[1755108061120,0.58888318,121660.0,121650.0,0.13352]
[1755108061323,0.58718318,121660.0,121650.0,0.13352]
[1755108061521,0.58718318,121660.0,121650.0,0.43296]
[1755108061779,0.58718318,121660.0,121650.0,0.30244]
[1755108061999,0.58718318,121660.0,121650.0,0.43292]
[1755108062206,0.58718318,121660.0,121650.0,0.30244]
[1755108062417,0.58718318,121660.0,121650.0,0.43292]
[1755108062626,0.1081315,121660.0,121650.0,0.20518]
[1755108062841,0.12558998,121660.0,121650.0,0.356518]
[1755108063053,0.57916318,121660.0,121650.0,0.028998]
[1755108063258,0.57916318,121660.0,121650.0,0.14034]
[1755108063437,0.57916318,121660.0,121650.0,0.1403]
[1755108065876,0.12558998,121660.0,121650.0,0.1403]
[1755108066094,0.57916318,121660.0,121650.0,0.1403]
[1755108067653,0.57916318,121660.0,121650.0,0.00818]
[1755108067811,0.57916318,121660.0,121650.0,0.14038]
[1755108068203,0.12558998,121660.0,121650.0,0.14038]
[1755108068402,0.58070672,121660.0,121650.0,0.154718]
[1755108068607,0.57916318,121660.0,121650.0,0.154718]
[1755108068935,0.57916318,121660.0,121650.0,0.003]
[1755108069147,1.03443638,121660.0,121650.0,0.003]
[1755108069354,1.03772138,121660.0,121650.0,0.003]
[1755108069569,1.03772138,121660.0,121650.0,0.13512]
[1755108069777,1.03472138,121660.0,121650.0,0.13512]
[1755108070208,1.03872138,121660.0,121650.0,0.13512]
[1755108070631,1.03872138,121660.0,121650.0,0.003]
[1755108070894,1.03872138,121660.0,121650.0,0.13512]
[1755108071088,1.05408784,121660.0,121650.0,0.13512]
[1755108071518,1.13657227,121660.0,121650.0,0.30244]
[1755108071726,1.05408784,121660.0,121650.0,0.30244]
[1755108071950,1.05578784,121660.0,121650.0,0.43448]
[1755108072384,1.05678784,121660.0,121650.0,0.43448]
[1755108072585,1.05678784,121660.0,121650.0,0.33204]
[1755108074014,1.04142138,121660.0,121650.0,0.33204]
[1755108074215,1.05677569,121660.0,121650.0,0.2]
[1755108074468,1.05677569,121660.0,121650.0,0.332]
[1755108075285,0.60150249,121660.0,121650.0,0.003]
[1755108075476,0.58614818,121660.0,121650.0,0.003]
[1755108075927,0.58614818,121660.0,121650.0,0.13484]
[1755108077369,0.58614818,121660.0,121650.0,0.003]
[1755108077569,0.58614818,121660.0,121650.0,0.13484]
[1755108078401,0.58614818,121660.0,121650.0,0.1348]
[1755108078797,0.58614818,121660.0,121650.0,0.003]
[1755108078999,0.58614818,121660.0,121650.0,0.13476]
[1755108079650,0.58614818,121660.0,121650.0,0.003]
[1755108079825,0.58614818,121660.0,121650.0,0.13476]
[1755108080589,0.13257498,121660.0,121650.0,0.13688]
[1755108080803,0.11342596,121660.0,121650.0,0.154022]
[1755108081047,0.11014096,121660.0,121650.0,0.154022]
[1755108081268,0.11014096,121660.0,121650.0,0.154942]
[1755108081536,0.11014096,121660.0,121650.0,0.124702]
[1755108081537,0.12913352,121660.0,121650.0,0.124702]
[1755108081790,0.12813352,121660.0,121650.0,0.502152]
[1755108082000,0.12813352,121660.0,121650.0,0.369272]
[1755108082001,0.10463504,121660.0,121650.0,0.369272]
[1755108082265,0.12413352,121660.0,121650.0,0.503152]
[1755108082462,0.08264248,121660.0,121650.0,0.400712]
[1755108082674,0.1076845,121660.0,121650.0,0.401152]
[1755108082887,0.12513352,121660.0,121650.0,0.401152]
[1755108083111,0.10614096,121660.0,121650.0,0.401152]
[1755108083322,0.12358998,121660.0,121650.0,0.069832]
[1755108083513,0.12513352,121660.0,121650.0,0.19039]
[1755108083782,0.12358998,121660.0,121650.0,0.19039]
[1755108084197,0.57716318,121660.0,121650.0,0.19043]
[1755108084402,0.57716318,121660.0,121650.0,0.19059]
[1755108084621,0.57716318,121660.0,121650.0,0.19071]
[1755108085093,0.12358998,121660.0,121650.0,0.210081]
[1755108085509,0.57716318,121660.0,121650.0,0.210081]
[1755108086341,0.57716318,121660.0,121650.0,0.05575]
[1755108086524,0.57716318,121660.0,121650.0,0.14442]
[1755108086985,0.12358998,121660.0,121650.0,0.14442]
[1755108087166,0.57726318,121660.0,121650.0,0.14442]
[1755108087468,0.57726318,121660.0,121650.0,0.00918]
[1755108087713,0.12368998,121660.0,121650.0,0.14438]
[1755108087934,0.57726318,121660.0,121650.0,0.023918]
[1755108088171,0.12368998,121660.0,121650.0,0.05575]
[1755108088400,0.57726318,121660.0,121650.0,0.19111]
[1755108088640,0.08274248,121660.0,121650.0,0.05575]
[1755108088873,0.53631568,121660.0,121650.0,0.05575]
[1755108089078,0.53631568,121660.0,121650.0,0.19107]
[1755108089079,0.5537647,121660.0,121650.0,0.19107]
[1755108089515,0.5537647,121660.0,121650.0,0.210477]
[1755108089979,0.1001915,121660.0,121650.0,0.210477]
[1755108090197,0.1001915,121660.0,121650.0,0.075157]
[1755108090445,0.08274248,121660.0,121650.0,0.19103]
[1755108090666,0.08274248,121660.0,121650.0,0.05575]
[1755108090875,0.08428602,121660.0,121650.0,0.19091]
[1755108091286,0.08274248,121660.0,121650.0,0.19091]
[1755108091503,0.08274248,121660.0,121650.0,0.49035]
[1755108091680,0.5537647,121660.0,121650.0,0.49035]
[1755108091925,0.5537647,121660.0,121650.0,0.549929]
[1755108092593,0.1001915,121660.0,121650.0,0.414769]
[1755108092824,0.1001915,121660.0,121650.0,0.549929]
[1755108093628,0.10173504,121660.0,121650.0,0.549929]
[1755108093829,0.1001915,121660.0,121650.0,0.549929]
[1755108093991,0.5537647,121660.0,121650.0,0.549929]
[1755108094842,0.1001915,121660.0,121650.0,0.549929]
[1755108095193,0.5537647,121660.0,121650.0,0.115329]
[1755108095346,0.5537647,121660.0,121650.0,0.19071]